[Event "St Kilda East and Caulfield Chess Club T3 2025 Under 1600 Mondays"]
[Site "St Kilda East, Australia"]
[Date "2025.07.28"]
[Round "1.4"]
[White "Heideman, Don"]
[Black "Budianto, Youshan"]
[Result "0-1"]
[TimeControl "60 minutes per player per game plus 10 secionds per move from move one"]
[WhiteElo "478"]
[BlackElo "1032"]

1. d4 {[%clk 00:59:59]} {[%emt 00:00:03]} d5 {[%clk 00:59:51]} {[%emt
00:00:27]} 2. Nf3 {[%clk 01:00:03]} {[%emt 00:00:07]} Nc6 {[%clk 00:59:56]}
{[%emt 00:00:05]} 3. Bf4 {[%clk 01:00:00]} {[%emt 00:00:12]} Nf6 {[%clk
00:59:33]} {[%emt 00:00:33]} 4. e3 {[%clk 00:59:55]} {[%emt 00:00:14]} a6
{[%clk 00:59:37]} {[%emt 00:00:07]} 5. Be2 {[%clk 00:59:45]} {[%emt 00:00:19]}
g6 {[%clk 00:59:41]} {[%emt 00:00:07]} 6. O-O {[%clk 00:59:40]} {[%emt
00:00:15]} Bg7 {[%clk 00:59:47]} {[%emt 00:00:04]} 7. c3 {[%clk 00:59:09]}
{[%emt 00:00:41]} O-O {[%clk 00:59:49]} {[%emt 00:00:09]} 8. Nbd2 {[%clk
00:59:03]} {[%emt 00:00:16]} Bf5 {[%clk 00:59:48]} {[%emt 00:00:12]} 9. Ne5
{[%clk 00:57:21]} {[%emt 00:01:51]} Nxe5 {[%clk 00:59:05]} {[%emt 00:00:53]} 10.
Bxe5 {[%clk 00:57:02]} {[%emt 00:00:29]} Ne4 {[%clk 00:58:44]} {[%emt
00:00:31]} 11. Bxg7 {[%clk 00:55:59]} {[%emt 00:01:11]} Kxg7 {[%clk 00:58:47]}
{[%emt 00:00:08]} 12. Nxe4 {[%clk 00:53:41]} {[%emt 00:02:28]} dxe4 {[%clk
00:58:45]} {[%emt 00:00:12]} 13. Bg4 {[%clk 00:52:56]} {[%emt 00:00:55]} Qd7
{[%clk 00:58:40]} {[%emt 00:00:15]} 14. f3 {[%clk 00:51:06]} {[%emt 00:01:59]}
exf3 {[%clk 00:58:29]} {[%emt 00:00:22]} 15. Bxf3 {[%clk 00:50:20]} {[%emt
00:00:55]} c6 {[%clk 00:57:59]} {[%emt 00:00:42]} 16. d5 {[%clk 00:49:23]}
{[%emt 00:01:07]} h5 {[%clk 00:57:19]} {[%emt 00:00:50]} 17. e4 {[%clk
00:47:22]} {[%emt 00:02:10]} Bg4 {[%clk 00:57:21]} {[%emt 00:00:08]} 18. c4
{[%clk 00:45:50]} {[%emt 00:01:42]} Bxf3 {[%clk 00:56:54]} {[%emt 00:00:36]} 19.
Qxf3 {[%clk 00:45:32]} {[%emt 00:00:28]} cxd5 {[%clk 00:56:56]} {[%emt
00:00:10]} 20. cxd5 {[%clk 00:44:51]} {[%emt 00:00:51]} Rac8 {[%clk 00:56:43]}
{[%emt 00:00:23]} 21. Rfd1 {[%clk 00:43:19]} {[%emt 00:01:42]} Qg4 {[%clk
00:56:05]} {[%emt 00:00:48]} 22. Qxg4 {[%clk 00:42:46]} {[%emt 00:00:41]} hxg4
{[%clk 00:56:06]} {[%emt 00:00:11]} 23. b4 {[%clk 00:40:26]} {[%emt 00:02:30]}
Rc4 {[%clk 00:55:51]} {[%emt 00:00:26]} 24. d6 {[%clk 00:39:32]} {[%emt
00:01:04]} exd6 {[%clk 00:55:53]} {[%emt 00:00:08]} 25. Rxd6 {[%clk 00:39:17]}
{[%emt 00:00:23]} Rxb4 {[%clk 00:56:00]} {[%emt 00:00:05]} 26. Re1 {[%clk
00:38:39]} {[%emt 00:00:47]} Re8 {[%clk 00:55:14]} {[%emt 00:00:57]} 27. e5
{[%clk 00:38:21]} {[%emt 00:00:28]} Rb5 {[%clk 00:55:17]} {[%emt 00:00:07]} 28.
e6 {[%clk 00:37:46]} {[%emt 00:00:44]} fxe6 {[%clk 00:55:08]} {[%emt 00:00:20]}
29. Rexe6 {[%clk 00:37:13]} {[%emt 00:00:42]} Rxe6 {[%clk 00:55:11]} {[%emt
00:00:08]} 30. Rxe6 {[%clk 00:37:15]} {[%emt 00:00:08]} Rb1+ {[%clk 00:55:09]}
{[%emt 00:00:13]} 31. Kf2 {[%clk 00:37:08]} {[%emt 00:00:17]} Rb2+ {[%clk
00:55:17]} {[%emt 00:00:03]} 32. Re2 {[%clk 00:35:59]} {[%emt 00:01:17]} Rxe2+
{[%clk 00:55:22]} {[%emt 00:00:06]} 33. Kxe2 {[%clk 00:36:03]} {[%emt
00:00:05]} Kf6 {[%clk 00:55:29]} {[%emt 00:00:04]} 34. Ke3 {[%clk 00:35:01]}
{[%emt 00:01:12]} Ke5 {[%clk 00:55:33]} {[%emt 00:00:07]} 35. h3 {[%clk
00:34:00]} {[%emt 00:01:10]} gxh3 {[%clk 00:55:36]} {[%emt 00:00:08]} 36. gxh3
{[%clk 00:34:02]} {[%emt 00:00:07]} b5 {[%clk 00:55:36]} {[%emt 00:00:10]} 37.
Kf3 {[%clk 00:33:59]} {[%emt 00:00:12]} g5 {[%clk 00:55:37]} {[%emt 00:00:10]}
38. Kg4 {[%clk 00:34:00]} {[%emt 00:00:08]} Kf6 {[%clk 00:55:43]} {[%emt
00:00:05]} 39. Kf3 {[%clk 00:33:49]} {[%emt 00:00:21]} Kf5 {[%clk 00:55:44]}
{[%emt 00:00:09]} 40. a3 {[%clk 00:33:27]} {[%emt 00:00:32]} a5 {[%clk
00:55:49]} {[%emt 00:00:06]} 41. Ke2 {[%clk 00:33:21]} {[%emt 00:00:15]} Kf4
{[%clk 00:55:52]} {[%emt 00:00:07]} 42. Kf2 {[%clk 00:33:03]} {[%emt 00:00:27]}
b4 {[%clk 00:55:58]} {[%emt 00:00:06]} 43. axb4 {[%clk 00:33:07]} {[%emt
00:00:04]} axb4 {[%clk 00:56:04]} {[%emt 00:00:05]} 0-1

[Event "St Kilda East and Caulfield Chess Club T3 2025 Under 1600 Mondays"]
[Site "St Kilda East, Australia"]
[Date "2025.07.28"]
[Round "1.1"]
[White "Salama, John"]
[Black "Shore, Isaac"]
[Result "0-1"]
[TimeControl "60 minutes per player per game plus 10 secionds per move from move one"]
[WhiteElo "1296"]
[BlackElo "562"]

1. d4 {[%clk 01:00:06]} {[%emt 00:00:04]} c6 {[%clk 00:59:52]} {[%emt
00:00:18]} 2. Nf3 {[%clk 01:00:01]} {[%emt 00:00:14]} d5 {[%clk 00:59:49]}
{[%emt 00:00:14]} 3. e3 {[%clk 00:59:58]} {[%emt 00:00:13]} Bf5 {[%clk
00:59:39]} {[%emt 00:00:20]} 4. Bd3 {[%clk 00:59:42]} {[%emt 00:00:25]} Bxd3
{[%clk 00:58:49]} {[%emt 00:00:59]} 5. Qxd3 {[%clk 00:59:31]} {[%emt 00:00:22]}
e6 {[%clk 00:58:48]} {[%emt 00:00:11]} 6. O-O {[%clk 00:58:36]} {[%emt
00:01:05]} Nd7 {[%clk 00:58:46]} {[%emt 00:00:12]} 7. Nbd2 {[%clk 00:58:04]}
{[%emt 00:00:42]} Ngf6 {[%clk 00:58:00]} {[%emt 00:00:55]} 8. Re1 {[%clk
00:57:36]} {[%emt 00:00:38]} Bd6 {[%clk 00:57:28]} {[%emt 00:00:43]} 9. e4
{[%clk 00:56:51]} {[%emt 00:00:55]} O-O {[%clk 00:56:05]} {[%emt 00:01:32]} 10.
e5 {[%clk 00:56:22]} {[%emt 00:00:40]} Ne4 {[%clk 00:54:15]} {[%emt 00:02:01]}
11. Nxe4 {[%clk 00:55:37]} {[%emt 00:00:54]} dxe4 {[%clk 00:54:06]} {[%emt
00:00:18]} 12. Qxe4 {[%clk 00:55:35]} {[%emt 00:00:12]} Bc7 {[%clk 00:53:25]}
{[%emt 00:00:52]} 13. Bg5 {[%clk 00:53:48]} {[%emt 00:01:56]} Qc8 {[%clk
00:51:24]} {[%emt 00:02:13]} 14. Qh4 {[%clk 00:49:42]} {[%emt 00:04:14]} Bd8
{[%clk 00:50:27]} {[%emt 00:01:08]} 15. Re3 {[%clk 00:47:27]} {[%emt 00:02:26]}
h6 {[%clk 00:50:04]} {[%emt 00:00:33]} 16. Bxd8 {[%clk 00:46:49]} {[%emt
00:00:48]} Qxd8 {[%clk 00:50:06]} {[%emt 00:00:07]} 17. Qxd8 {[%clk 00:45:25]}
{[%emt 00:01:34]} Raxd8 {[%clk 00:50:10]} {[%emt 00:00:06]} 18. Rb3 {[%clk
00:44:59]} {[%emt 00:00:36]} b6 {[%clk 00:49:59]} {[%emt 00:00:22]} 19. Kf1
{[%clk 00:40:59]} {[%emt 00:04:08]} c5 {[%clk 00:49:29]} {[%emt 00:00:41]} 20.
Rd1 {[%clk 00:39:23]} {[%emt 00:01:47]} cxd4 {[%clk 00:47:42]} {[%emt
00:01:57]} 21. Rbd3 {[%clk 00:37:37]} {[%emt 00:01:55]} Rfe8 {[%clk 00:46:36]}
{[%emt 00:01:16]} 22. Rxd4 {[%clk 00:37:18]} {[%emt 00:00:30]} Re7 {[%clk
00:45:35]} {[%emt 00:01:11]} 23. b4 {[%clk 00:35:56]} {[%emt 00:01:31]} Kf8
{[%clk 00:45:09]} {[%emt 00:00:36]} 24. c4 {[%clk 00:35:34]} {[%emt 00:00:33]}
Ke8 {[%clk 00:43:11]} {[%emt 00:02:08]} 25. a4 {[%clk 00:32:34]} {[%emt
00:03:10]} f6 {[%clk 00:42:45]} {[%emt 00:00:36]} 26. Ke2 {[%clk 00:31:43]}
{[%emt 00:01:01]} Rb8 {[%clk 00:42:27]} {[%emt 00:00:28]} 27. exf6 {[%clk
00:30:21]} {[%emt 00:01:33]} gxf6 {[%clk 00:41:23]} {[%emt 00:01:13]} 28. Rh4
{[%clk 00:28:19]} {[%emt 00:02:12]} a5 {[%clk 00:40:45]} {[%emt 00:00:49]} 29.
bxa5 {[%clk 00:27:14]} {[%emt 00:01:15]} bxa5 {[%clk 00:40:47]} {[%emt
00:00:08]} 30. Rxh6 {[%clk 00:27:12]} {[%emt 00:00:12]} Rb2+ {[%clk 00:40:28]}
{[%emt 00:00:29]} 31. Rd2 {[%clk 00:26:53]} {[%emt 00:00:28]} Rxd2+ {[%clk
00:39:41]} {[%emt 00:00:57]} 32. Kxd2 {[%clk 00:26:55]} {[%emt 00:00:07]} Nc5
{[%clk 00:39:46]} {[%emt 00:00:05]} 33. Rh8+ {[%emt 00:03:43]} Kf7 {[%emt
00:00:56]} 34. Rh7+ {[%clk 00:22:04]} {[%emt 00:00:22]} Ke8 {[%clk 00:39:42]}
{[%emt 00:00:14]} 35. Rxe7+ {[%clk 00:22:05]} {[%emt 00:00:10]} Kxe7 {[%clk
00:39:46]} {[%emt 00:00:07]} 36. Nd4 {[%clk 00:20:52]} {[%emt 00:01:22]} Kd6
{[%clk 00:38:20]} {[%emt 00:01:37]} 37. h4 {[%clk 00:18:41]} {[%emt 00:02:20]}
e5 {[%clk 00:36:47]} {[%emt 00:01:44]} 38. Nc6 {[%clk 00:16:07]} {[%emt
00:02:44]} Kxc6 {[%clk 00:36:28]} {[%emt 00:00:28]} 39. h5 {[%clk 00:16:05]}
{[%emt 00:00:12]} Ne4+ {[%clk 00:36:31]} {[%emt 00:00:07]} 40. Ke3 {[%clk
00:16:05]} {[%emt 00:00:09]} f5 {[%clk 00:35:48]} {[%emt 00:00:53]} 41. g4
{[%clk 00:15:32]} {[%emt 00:00:43]} Nf6 {[%clk 00:34:28]} {[%emt 00:01:30]} 42.
gxf5 {[%clk 00:14:39]} {[%emt 00:01:04]} Nxh5 {[%clk 00:33:55]} {[%emt
00:00:42]} 43. Ke4 {[%clk 00:14:16]} {[%emt 00:00:32]} Kd6 {[%clk 00:32:57]}
{[%emt 00:01:10]} 44. f3 {[%clk 00:13:41]} {[%emt 00:00:46]} Ng3+ {[%clk
00:32:07]} {[%emt 00:00:47]} 0-1

[Event "St Kilda East and Caulfield Chess Club T3 2025 Under 1600 Mondays"]
[Site "St Kilda East, Australia"]
[Date "2025.07.28"]
[Round "1.2"]
[White "Gordon, Samuel"]
[Black "Beckman, John"]
[Result "0-1"]
[TimeControl "60 minutes per player per game plus 10 secionds per move from move one"]
[WhiteElo "526"]
[BlackElo "1201"]

1. e4 {[%clk 01:00:07]} {[%emt 00:00:03]} e5 {[%clk 00:59:44]} {[%emt
00:00:24]} 2. Nf3 {[%clk 01:00:10]} {[%emt 00:00:07]} Nc6 {[%clk 00:58:48]}
{[%emt 00:01:07]} 3. Bc4 {[%clk 00:59:57]} {[%emt 00:00:23]} h6 {[%clk
00:57:53]} {[%emt 00:01:06]} 4. b3 {[%clk 00:59:50]} {[%emt 00:00:18]} Nf6
{[%clk 00:57:07]} {[%emt 00:00:55]} 5. d3 {[%clk 00:59:40]} {[%emt 00:00:20]}
Bc5 {[%clk 00:56:38]} {[%emt 00:00:39]} 6. O-O {[%clk 00:59:39]} {[%emt
00:00:11]} O-O {[%clk 00:56:02]} {[%emt 00:00:45]} 7. Bb2 {[%clk 00:59:42]}
{[%emt 00:00:09]} d6 {[%clk 00:55:18]} {[%emt 00:00:54]} 8. h3 {[%clk
00:59:26]} {[%emt 00:00:25]} Na5 {[%clk 00:53:59]} {[%emt 00:01:28]} 9. d4
{[%clk 00:59:03]} {[%emt 00:00:34]} Nxc4 {[%clk 00:52:03]} {[%emt 00:02:06]} 10.
bxc4 {[%clk 00:58:59]} {[%emt 00:00:13]} exd4 {[%clk 00:51:29]} {[%emt
00:00:45]} 11. Bxd4 {[%clk 00:58:47]} {[%emt 00:00:19]} Bxd4 {[%clk 00:51:14]}
{[%emt 00:00:27]} 12. Qxd4 {[%clk 00:58:48]} {[%emt 00:00:09]} Be6 {[%clk
00:50:02]} {[%emt 00:01:22]} 13. Nc3 {[%clk 00:58:41]} {[%emt 00:00:17]} a6
{[%clk 00:48:13]} {[%emt 00:01:59]} 14. Rab1 {[%clk 00:58:34]} {[%emt
00:00:17]} Rb8 {[%emt 00:00:21]} 15. Nd5 {[%clk 00:58:13]} {[%emt 00:00:28]}
Nd7 {[%clk 00:46:53]} {[%emt 00:01:21]} 16. Rfd1 {[%clk 00:57:51]} {[%emt
00:00:32]} Re8 {[%clk 00:43:43]} {[%emt 00:03:20]} 17. a4 {[%clk 00:56:05]}
{[%emt 00:01:56]} f5 {[%clk 00:39:51]} {[%emt 00:04:01]} 18. exf5 {[%clk
00:55:25]} {[%emt 00:00:50]} Bxf5 {[%clk 00:39:29]} {[%emt 00:00:32]} 19. Ne3
{[%clk 00:55:00]} {[%emt 00:00:34]} Be6 {[%clk 00:38:17]} {[%emt 00:01:22]} 20.
Re1 {[%clk 00:54:45]} {[%emt 00:00:25]} Qf6 {[%clk 00:35:56]} {[%emt 00:02:33]}
21. Qxf6 {[%clk 00:54:10]} {[%emt 00:00:44]} Nxf6 {[%clk 00:35:52]} {[%emt
00:00:15]} 22. Nd5 {[%clk 00:54:03]} {[%emt 00:00:18]} Nxd5 {[%clk 00:35:34]}
{[%emt 00:00:27]} 23. cxd5 {[%clk 00:54:00]} {[%emt 00:00:11]} Bxd5 {[%clk
00:33:16]} {[%emt 00:02:29]} 24. Rxe8+ {[%clk 00:53:16]} {[%emt 00:00:54]} Rxe8
{[%clk 00:33:13]} {[%emt 00:00:14]} 25. Nd4 {[%clk 00:53:08]} {[%emt 00:00:18]}
g6 {[%clk 00:31:46]} {[%emt 00:01:37]} 26. f3 {[%clk 00:52:49]} {[%emt
00:00:29]} c5 {[%clk 00:30:02]} {[%emt 00:01:54]} 27. Nb3 {[%clk 00:52:45]}
{[%emt 00:00:14]} b5 {[%clk 00:28:03]} {[%emt 00:02:08]} 28. axb5 {[%clk
00:52:38]} {[%emt 00:00:16]} axb5 {[%clk 00:28:02]} {[%emt 00:00:12]} 29. Na5
{[%clk 00:52:30]} {[%emt 00:00:19]} b4 {[%clk 00:27:48]} {[%emt 00:00:23]} 30.
Kf2 {[%clk 00:52:19]} {[%emt 00:00:21]} Kf7 {[%clk 00:27:14]} {[%emt 00:00:43]}
31. Rc1 {[%clk 00:52:04]} {[%emt 00:00:26]} Ra8 {[%clk 00:26:36]} {[%emt
00:00:49]} 32. Nb3 {[%clk 00:51:59]} {[%emt 00:00:15]} Ra2 {[%clk 00:26:15]}
{[%emt 00:00:31]} 33. Ke3 {[%clk 00:51:51]} {[%emt 00:00:18]} Bxb3 {[%clk
00:25:48]} {[%emt 00:00:37]} 34. cxb3 {[%clk 00:51:46]} {[%emt 00:00:15]} Rxg2
{[%clk 00:25:56]} {[%emt 00:00:02]} 35. Rd1 {[%clk 00:51:37]} {[%emt 00:00:20]}
Ke6 {[%clk 00:25:16]} {[%emt 00:00:49]} 36. Rd3 {[%clk 00:51:28]} {[%emt
00:00:19]} g5 {[%clk 00:24:59]} {[%emt 00:00:26]} 37. Rd2 {[%clk 00:50:52]}
{[%emt 00:00:47]} Rg3 {[%emt 00:01:25]} 38. Rh2 {[%clk 00:50:35]} {[%emt
00:00:24]} h5 {[%clk 00:23:15]} {[%emt 00:00:41]} 39. Kf2 {[%clk 00:50:35]}
{[%emt 00:00:11]} h4 {[%clk 00:23:04]} {[%emt 00:00:20]} 40. Rh1 {[%clk
00:50:29]} {[%emt 00:00:16]} Ke5 {[%clk 00:22:39]} {[%emt 00:00:35]} 41. Ke3
{[%clk 00:50:25]} {[%emt 00:00:15]} d5 {[%clk 00:22:18]} {[%emt 00:00:31]} 42.
Kd4+ {[%emt 00:01:07]} 0-1

[Event "St Kilda East and Caulfield Chess Club T3 2025 Under 1600 Mondays"]
[Site "St Kilda East, Australia"]
[Date "2025.07.28"]
[Round "1.3"]
[White "O'Connor, Alistair"]
[Black "Lin, Jayden"]
[Result "1-0"]
[TimeControl "60 minutes per player per game plus 10 secionds per move from move one"]
[WhiteElo "1053"]
[BlackElo "499"]

1. c4 {[%clk 01:00:06]} {[%emt 00:00:03]} e5 {[%clk 00:59:44]} {[%emt
00:00:27]} 2. g3 {[%clk 00:59:58]} {[%emt 00:00:18]} d5 {[%clk 00:58:59]}
{[%emt 00:00:55]} 3. cxd5 {[%clk 00:59:27]} {[%emt 00:00:41]} Qxd5 {[%clk
00:58:06]} {[%emt 00:01:02]} 4. Nf3 {[%clk 00:59:02]} {[%emt 00:00:36]} Nc6
{[%clk 00:56:16]} {[%emt 00:02:01]} 5. Nc3 {[%clk 00:58:04]} {[%emt 00:01:08]}
Qe6 {[%clk 00:55:26]} {[%emt 00:01:00]} 6. Bg2 {[%clk 00:57:01]} {[%emt
00:01:12]} b6 {[%clk 00:53:43]} {[%emt 00:01:54]} 7. Nxe5 {[%clk 00:55:33]}
{[%emt 00:01:37]} Bb7 {[%clk 00:53:15]} {[%emt 00:00:39]} 8. d4 {[%clk
00:54:45]} {[%emt 00:00:57]} Qd6 {[%clk 00:50:08]} {[%emt 00:03:17]} 9. Qa4
{[%clk 00:52:40]} {[%emt 00:02:14]} O-O-O {[%clk 00:44:00]} {[%emt 00:06:18]}
10. Bxc6 {[%clk 00:51:49]} {[%emt 00:01:02]} Bxc6 {[%clk 00:43:40]} {[%emt
00:00:29]} 11. Qxc6 {[%clk 00:51:23]} {[%emt 00:00:37]} Qxc6 {[%clk 00:42:59]}
{[%emt 00:00:49]} 12. Nxc6 {[%clk 00:51:25]} {[%emt 00:00:10]} Re8 {[%clk
00:42:05]} {[%emt 00:01:04]} 13. Nxa7+ {[%clk 00:50:44]} {[%emt 00:00:51]} Kb7
{[%clk 00:41:55]} {[%emt 00:00:19]} 14. Nab5 {[%clk 00:50:30]} {[%emt
00:00:24]} Nf6 {[%clk 00:41:51]} {[%emt 00:00:14]} 15. Bf4 {[%clk 00:50:20]}
{[%emt 00:00:20]} Bb4 {[%clk 00:40:47]} {[%emt 00:01:14]} 16. O-O {[%clk
00:50:04]} {[%emt 00:00:27]} Bxc3 {[%clk 00:40:27]} {[%emt 00:00:29]} 17. bxc3
{[%clk 00:49:53]} {[%emt 00:00:21]} Rxe2 {[%clk 00:40:18]} {[%emt 00:00:18]} 18.
a4 {[%clk 00:49:25]} {[%emt 00:00:39]} Nd5 {[%clk 00:40:08]} {[%emt 00:00:20]}
19. Be3 {[%clk 00:48:04]} {[%emt 00:01:32]} Nxe3 {[%clk 00:40:03]} {[%emt
00:00:16]} 20. fxe3 {[%clk 00:48:01]} {[%emt 00:00:13]} Rxe3 {[%clk 00:40:06]}
{[%emt 00:00:07]} 21. Rxf7 {[%clk 00:48:03]} {[%emt 00:00:08]} Kc6 {[%clk
00:39:25]} {[%emt 00:00:51]} 22. c4 {[%clk 00:47:05]} {[%emt 00:01:07]} g5
{[%clk 00:38:02]} {[%emt 00:01:32]} 23. Rxc7# {[%clk 00:45:59]} {[%emt
00:00:18]} 1-0

[Event "St Kilda East and Caulfield Chess Club T3 2025 Under 1600 Mondays"]
[Site "St Kilda East, Australia"]
[Date "2025.07.28"]
[Round "1.5"]
[White "Karboulahanos, Kris"]
[Black "Yong, Leonard"]
[Result "0-1"]
[TimeControl "60 minutes per player per game plus 10 secionds per move from move one"]
[WhiteElo "1029"]
[BlackElo "449"]

1. e4 {[%clk 01:00:09]} e5 {[%clk 01:00:06]} {[%emt 00:00:06]} 2. Nc3 {[%clk
01:00:08]} {[%emt 00:00:10]} Nf6 {[%clk 01:00:06]} {[%emt 00:00:09]} 3. Nf3
{[%clk 01:00:04]} {[%emt 00:01:09]} Nc6 {[%clk 01:00:08]} {[%emt 00:00:03]} 4.
Bc4 {[%clk 00:59:56]} {[%emt 00:00:17]} Nxe4 {[%clk 00:59:50]} {[%emt
00:00:26]} 5. Nxe4 {[%clk 00:59:33]} {[%emt 00:00:34]} d5 {[%clk 00:59:54]}
{[%emt 00:00:07]} 6. Bxd5 {[%clk 00:59:23]} {[%emt 00:00:20]} Qxd5 {[%clk
00:59:52]} {[%emt 00:00:12]} 7. d3 {[%clk 00:59:21]} {[%emt 00:00:13]} Bf5
{[%clk 00:59:29]} {[%emt 00:00:33]} 8. c4 {[%clk 00:59:17]} {[%emt 00:00:13]}
Bb4+ {[%clk 00:59:07]} {[%emt 00:00:32]} 9. Bd2 {[%clk 00:59:09]} {[%emt
00:00:19]} Qa5 {[%clk 00:58:54]} {[%emt 00:00:23]} 10. O-O {[%clk 00:58:55]}
{[%emt 00:00:23]} Bxe4 {[%clk 00:58:24]} {[%emt 00:00:39]} 11. Bxb4 {[%clk
00:58:03]} {[%emt 00:01:03]} Qxb4 {[%clk 00:57:21]} {[%emt 00:01:14]} 12. dxe4
{[%clk 00:58:04]} {[%emt 00:00:08]} Qxc4 {[%clk 00:57:11]} {[%emt 00:00:20]} 13.
Nd2 {[%clk 00:57:03]} {[%emt 00:01:12]} Qb5 {[%clk 00:56:26]} {[%emt 00:00:55]}
14. b3 {[%clk 00:56:51]} {[%emt 00:00:22]} O-O-O {[%clk 00:56:00]} {[%emt
00:00:36]} 15. Qg4+ {[%clk 00:56:27]} {[%emt 00:00:34]} Kb8 {[%clk 00:55:37]}
{[%emt 00:00:33]} 16. Nc4 {[%clk 00:56:19]} {[%emt 00:00:18]} Rd4 {[%clk
00:54:48]} {[%emt 00:00:59]} 17. Qxg7 {[%clk 00:55:47]} {[%emt 00:00:41]} Rhd8
{[%clk 00:54:39]} {[%emt 00:00:19]} 18. Qxf7 {[%clk 00:54:51]} {[%emt
00:01:07]} Na5 {[%clk 00:53:24]} {[%emt 00:01:25]} 19. Nxa5 {[%clk 00:53:52]}
{[%emt 00:01:08]} Qxa5 {[%clk 00:53:21]} {[%emt 00:00:13]} 20. Qxh7 {[%clk
00:53:51]} {[%emt 00:00:11]} Qc3 {[%clk 00:52:48]} {[%emt 00:00:43]} 21. Rac1
{[%clk 00:53:36]} {[%emt 00:00:25]} Qxc1 {[%clk 00:52:08]} {[%emt 00:00:51]} 22.
h3 {[%clk 00:53:27]} {[%emt 00:00:19]} Qg5 {[%clk 00:50:58]} {[%emt 00:01:20]}
23. Kh2 {[%clk 00:53:21]} {[%emt 00:00:16]} Rg8 {[%clk 00:50:14]} {[%emt
00:00:53]} 24. g3 {[%clk 00:53:19]} {[%emt 00:00:12]} Rd2 {[%clk 00:49:28]}
{[%emt 00:00:56]} 25. Kg2 {[%clk 00:53:15]} {[%emt 00:00:14]} Qxg3+ {[%clk
00:48:34]} {[%emt 00:01:04]} 26. Kh1 {[%clk 00:53:17]} {[%emt 00:00:08]} Qg2#
{[%clk 00:48:41]} {[%emt 00:00:03]} 0-1

[Event "St Kilda East and Caulfield Chess Club T3 2025 Under 1600 Mondays"]
[Site "St Kilda East, Australia"]
[Date "2025.07.28"]
[Round "1.6"]
[White "Feng, Austin"]
[Black "Nash, Paul"]
[Result "0-1"]
[TimeControl "60 minutes per player per game plus 10 secionds per move from move one"]
[WhiteElo "448"]
[BlackElo "1009"]

1. e4 {[%clk 01:00:09]} {[%emt 00:59:00]} e5 {[%clk 01:00:04]} {[%emt
00:00:07]} 2. Nf3 {[%clk 01:00:12]} {[%emt 00:00:06]} Nc6 {[%clk 01:00:07]}
{[%emt 00:00:06]} 3. Bc4 {[%clk 01:00:14]} {[%emt 00:00:08]} Nf6 {[%clk
01:00:05]} {[%emt 00:00:12]} 4. Ng5 {[%clk 01:00:16]} {[%emt 00:00:09]} Bc5
{[%clk 00:59:34]} {[%emt 00:00:41]} 5. Nxf7 {[%clk 01:00:15]} {[%emt 00:00:10]}
Bxf2+ {[%clk 00:59:27]} {[%emt 00:00:17]} 6. Kxf2 {[%clk 01:00:12]} {[%emt
00:00:13]} Nxe4+ {[%clk 00:59:22]} {[%emt 00:00:15]} 7. Ke1 {[%clk 00:59:49]}
{[%emt 00:00:33]} Qh4+ {[%clk 00:59:01]} {[%emt 00:00:31]} 8. g3 {[%clk
00:59:11]} {[%emt 00:00:49]} Nxg3 {[%clk 00:58:45]} {[%emt 00:00:26]} 9. hxg3
{[%clk 00:54:48]} {[%emt 00:04:32]} Qxh1+ {[%clk 00:58:29]} {[%emt 00:00:25]}
10. Ke2 {[%clk 00:54:43]} {[%emt 00:00:15]} Nd4+ {[%clk 00:58:24]} {[%emt
00:00:16]} 0-1